Cogmind - Beta 11 @@@ ROGUE MODE // 2022.04.17 @ 11:34:32 Player: Stryker Result: Escaped! Performance ------------- Evolutions (9) 4500 Regions Visited (31) 6200 Robots Destroyed (346) 1730 Value Destroyed (16264) 16264 Prototype IDs (92) 1840 Alien Tech Used (5) 1000 Bonus (11140) 11140 TOTAL SCORE: 42674 Bonus ------- High Alert Combat Kills 961 Follower Combat Kills 2540 Network Hubs Disabled 200 Aligned with FarCom 300 Met Data Miner 300 Met Imprinter 300 Met Zhirov 300 Met R17 at Cetus 500 Found Hidden Lab 3000 Pursued by Intercept 1000 Win 3000 Friendly Fire -1261 Cogmind --------- Core Integrity 1598/1600 Matter 193/300 Energy 339/590 System Corruption 10% Temperature Cool (15) Movement Treading (161) Location To Epsilon Eridani Parts ------- > --- POWER (2) -------- Heavy Antimatter Reactor Reinforced Quantum Reactor > --- PROPULSION (8) --- Armored Heavy Treads Armored Heavy Treads Centrium Heavy Treads Biometal Heavy Treads > --- UTILITY (12) ----- Advanced Cooling System Huge Storage Unit Advanced Terrain Scan Processor Experimental Targeting Computer Improved Kinecellerator Advanced Transmission Jammer Layered Heavy Armor Plating AEGIS Remote Shield Advanced Hacking Suite Experimental Hacking Suite Quantum Router > --- WEAPON (4) ------- Enhanced Nova Cannon Advanced KE Penetrator > --- INVENTORY (25) --- Quantum Reactor Experimental Power Amplifier Experimental Coolant Injector Energy Well (350) Improved Matter Compressor (300) Advanced Signal Interpreter Improved Terrain Scanner Experimental Targeting Computer Experimental Core Analyzer Improved Armor Integrity Analyzer Precision Energy Filter Advanced Weapon Cycler Centrium Medium Armor Plating Centrium Medium Armor Plating Advanced Thermal Shield EM Disruption Field Advanced Component Analysis Suite Enhanced Nova Cannon Warp Cannon Heavy Machine Gun KE Penetrator Linked Autogun Peak State ------------ > --- POWER ------------ Heavy Antimatter Reactor Reinforced Quantum Reactor > --- PROPULSION ------- Armored Heavy Treads Centrium Heavy Treads Centrium Heavy Treads Biometal Heavy Treads > --- UTILITY ---------- Advanced Cooling System Huge Storage Unit Advanced Terrain Scan Processor Experimental Targeting Computer Improved Kinecellerator Advanced Transmission Jammer Layered Heavy Armor Plating AEGIS Remote Shield Advanced Hacking Suite Experimental Hacking Suite Quantum Router > --- WEAPON ----------- Enhanced Nova Cannon Railgun Advanced KE Penetrator Advanced KE Penetrator > --- INVENTORY -------- Quantum Reactor Armored Heavy Treads Experimental Power Amplifier Experimental Coolant Injector Energy Well Improved Matter Compressor Advanced Signal Interpreter Improved Terrain Scanner Experimental Targeting Computer Experimental Core Analyzer Improved Armor Integrity Analyzer Precision Energy Filter Advanced Weapon Cycler Centrium Medium Armor Plating Centrium Medium Armor Plating Advanced Thermal Shield EM Disruption Field Advanced Component Analysis Suite Warp Cannon Linked Autogun [Rating: 211] Favorites ----------- Power Reinforced Fission Core Engine Heavy Ion Engine Power Core Reinforced Fission Core Reactor Heavy Antimatter Reactor Propulsion Medium Treads Treads Medium Treads Leg Carbon-fiber Leg Wheel Wheel Hover Unit Cooled Gravmag System Utility Huge Storage Unit Device Improved Terrain Scanner Storage Huge Storage Unit Processor Advanced Terrain Scan Processor Hackware Advanced Hacking Suite Protection Centrium Medium Armor Plating Weapon Advanced KE Penetrator Energy Gun Medium Laser Energy Cannon Heavy Phase Cannon Ballistic Gun Advanced KE Penetrator Ballistic Cannon Mass Driver Launcher Rocket Launcher Impact Weapon Hammer Slashing Weapon Katana Build | -11 -10 -10 -9 -9 -9 -8 -8 -7 -7 -7 -6 -6 -6 -6 -6 -5 -5 -5 -5 -5 -5 -4 -4 -4 -4 -3 -3 -3 -3 -2 -1 ------- Run | Scr Mat Min Mat Min Exi Min Mat Fac Low Dat Pro Fac Low Low Zio Pro Fac Ext Cet Arc Hub Fac Upp Upp Zhi Pro Res Arm Lab Res Acc Slots Evolved 18 | . . . 2 . . . 2 2 . . . 2 . . . . 2 . . . . 2 . . . . 2 . . 2 2 Power 1 | . . . . . . . . . . . . . . . . . 1 . . . . . . . . . . . . . . Propulsion 6 | . . . 1 . . . 2 . . . . 1 . . . . . . . . . . . . . . . . . 1 1 Utility 10 | . . . 1 . . . . 2 . . . 1 . . . . 1 . . . . 2 . . . . 2 . . 1 . Weapon 1 | . . . . . . . . . . . . . . . . . . . . . . . . . . . . . . . 1 Parts Attached 528 | 2 5 11 10 4 6 2 29 31 2 4 13 17 13 10 7 58 54 23 9 19 16 30 11 9 9 6 33 14 10 49 12 Power 18 | . 1 1 1 . . . . . . . . 1 . . . . 5 1 . . . 2 . . 1 . 1 . . 4 . Engine 7 | . 1 1 1 . . . . . . . . 1 . . . . 3 . . . . . . . . . . . . . . Core 4 | . . . . . . . . . . . . . . . . . 2 1 . . . 1 . . . . . . . . . Reactor 7 | . . . . . . . . . . . . . . . . . . . . . . 1 . . 1 . 1 . . 4 . Propulsion 73 | . 2 4 2 . 2 2 13 3 . . . 3 . . 2 6 7 1 4 4 3 2 . . 2 . 2 2 . 5 2 Treads 61 | . 1 3 2 . . 1 8 3 . . . 3 . . 2 6 6 1 4 4 3 2 . . 1 . 2 2 . 5 2 Leg 1 | . . . . . . . . . . . . . . . . . 1 . . . . . . . . . . . . . . Wheel 10 | . 1 1 . . 2 1 5 . . . . . . . . . . . . . . . . . . . . . . . . Hover 1 | . . . . . . . . . . . . . . . . . . . . . . . . . 1 . . . . . . Flight . | . . . . . . . . . . . . . . . . . . . . . . . . . . . . . . . . Utility 299 | 2 1 4 4 1 4 . 6 15 2 2 11 9 11 7 5 36 29 11 1 8 8 13 11 7 5 6 26 9 7 29 9 Device 219 | 2 . 1 3 . 2 . 3 7 2 1 8 6 10 5 1 28 19 9 . 5 6 12 9 6 3 6 24 5 3 24 9 Storage 7 | . 1 . . . 2 . 1 . . . . . . . . . 1 . . . 1 . . . 1 . . . . . . Processor 8 | . . . . . . . 1 3 . . . . . . 3 . . . . . . . . . . . . . . 1 . Hackware 11 | . . . . . . . . . . . . 2 . . . . 3 . . 2 . . . . . . 1 . 3 . . Protection 54 | . . 3 1 1 . . 1 5 . 1 3 1 1 2 1 8 6 2 1 1 1 1 2 1 1 . 1 4 1 4 . Artifact . | . . . . . . . . . . . . . . . . . . . . . . . . . . . . . . . . Weapon 138 | . 1 2 3 3 . . 10 13 . 2 2 4 2 3 . 16 13 10 4 7 5 13 . 2 1 . 4 3 3 11 1 Energy Gun 4 | . . 1 . . . . 1 . . . . . . . . . . . . 1 . . . . . . . . 1 . . Energy Cannon 29 | . . . . . . . 1 . . . . 2 . 1 . 4 4 . . 3 1 4 . 1 . . 2 1 1 3 1 Ballistic Gun 56 | . . . . 1 . . 4 1 . . . . 1 1 . 4 8 6 3 3 2 7 . 1 1 . 2 2 1 8 . Ballistic Cannon 18 | . 1 . 1 . . . 1 6 . 2 . 1 1 . . 2 . 2 . . . 1 . . . . . . . . . Launcher 20 | . . 1 2 2 . . 2 . . . 1 . . 1 . 5 . 2 1 . 2 1 . . . . . . . . . Special Weapon . | . . . . . . . . . . . . . . . . . . . . . . . . . . . . . . . . Impact Weapon 2 | . . . . . . . 1 1 . . . . . . . . . . . . . . . . . . . . . . . Slashing Weapon 9 | . . . . . . . . 5 . . 1 1 . . . 1 1 . . . . . . . . . . . . . . Piercing Weapon . | . . . . . . . . . . . . . . . . . . . . . . . . . . . . . . . . Special Melee Weapon . | . . . . . . . . . . . . . . . . . . . . . . . . . . . . . . . . Unidentified Prototypes 25 | . . . . . . . 1 . . . . . 1 . 3 1 . 1 3 . 1 . . . 3 . . . 9 2 . Corrupted Parts 6 | . . 2 . . . . . . . . . . . . . . . . . 3 1 . . . . . . . . . . System Corruption 20 | . . 7 . . . . . . . . . . . . . . . . . 9 4 . . . . . . . . . . Parts Lost 35 | . . 1 2 2 . 2 4 . . . . 1 . 1 . 3 6 . . . . 1 . . . . 2 1 . 6 3 Power 3 | . . 1 1 . . . . . . . . 1 . . . . . . . . . . . . . . . . . . . Propulsion 13 | . . . 1 . . 1 4 . . . . . . . . 2 4 . . . . . . . . . . . . . 1 Utility 11 | . . . . 1 . 1 . . . . . . . 1 . 1 1 . . . . . . . . . . 1 . 5 . Weapon 8 | . . . . 1 . . . . . . . . . . . . 1 . . . . 1 . . . . 2 . . 1 2 Highest Loss Streak 3 | . . 1 2 1 . 2 1 . . . . 1 . 1 . 1 2 . . . . 1 . . . . 1 1 . 3 2 To Critical Strikes 1 | . . . . . . . . . . . . . . . . . . . . . . . . . . . . . . . 1 Average Slot Usage (%) 92 | . 100 99 95 100 97 87 89 100 100 86 100 99 100 100 99 99 91 88 85 81 82 84 80 80 80 85 85 88 89 84 79 Engine 4 | . 14 13 9 11 11 11 9 7 7 7 7 6 6 6 6 6 6 . . . . . . . . . . . . . . Core 2 | . . . . . . . . . . . . . . . . . 3 10 11 11 11 8 5 5 5 5 . . . . . Reactor 1 | . . . . . . . . . . . . . . . . . . . . . . . 5 5 5 5 8 9 9 8 7 Treads 25 | . 11 14 27 33 26 11 18 38 38 38 38 39 39 37 36 36 24 22 19 16 15 15 15 15 15 15 13 16 18 15 14 Wheel 2 | . 13 14 5 . 6 21 25 . . . . . . . . . . . . . . . . . . . . . . . . Device 11 | . 14 11 6 11 10 10 3 7 15 15 14 6 12 11 11 10 6 5 5 6 4 15 14 14 13 15 17 20 16 13 15 Storage 6 | . 14 14 11 11 11 11 9 7 7 7 7 6 6 6 6 6 5 5 5 5 5 5 5 5 5 5 4 4 4 4 3 Processor 4 | . . . . . . . . 7 7 7 7 6 6 6 6 6 5 5 5 5 5 5 5 5 5 5 4 4 4 4 7 Hackware 8 | . . . . . . . . . . . . 11 6 6 6 6 14 16 16 16 16 15 15 15 15 15 17 13 15 17 11 Protection 6 | . . 2 13 11 9 . 5 14 7 7 7 7 6 6 6 7 3 5 4 2 5 5 . . 1 5 3 4 6 8 3 Energy Cannon 2 | . . . . . . . 2 4 . . . 5 6 3 6 4 . . . 4 2 2 5 4 5 . 3 3 3 2 2 Ballistic Gun 7 | . 5 . . 11 11 11 9 . . . . . . 6 6 7 14 12 15 11 12 10 5 5 5 10 5 9 9 7 10 Ballistic Cannon 3 | . 8 14 8 . . . 2 4 15 2 11 4 6 6 6 4 . 3 . . . 1 5 5 5 5 2 . . . . Launcher 1 | . . 8 2 8 11 11 1 . . . 1 . . 2 . 1 . . . . . . . . . . . . . . . Naked Turns . | . . . . . . . . . . . . . . . . . . . . . . . . . . . . . . . . Heaviest Build 220 | 13 52 53 58 56 215 215 220 114 107 114 114 116 119 120 124 129 155 153 150 154 158 170 167 150 166 161 171 168 173 188 202 Greatest Support 275 | 20 20 10 60 60 60 20 106 130 130 130 130 160 160 130 135 140 188 167 240 240 240 240 240 240 240 240 240 200 190 250 275 Greatest Overweight (x) 10 | . 5 5 5 . 10 10 10 . . . . . . . . 1 1 . . . . . . . . . . 1 . 1 1 Average Overweight (x) . | . 2 4 1 . 2 10 6 . . . . . . . . . . . . . . . . . . . . . . . . Largest Inventory Capacity 35 | 8 20 20 20 20 35 35 35 25 25 25 25 25 25 25 25 25 25 25 25 25 25 25 25 25 25 25 25 25 25 25 25 Average Capacity 24 | 8 12 20 20 20 22 35 34 25 25 25 25 25 25 25 25 25 25 25 25 25 25 25 25 25 25 25 25 25 25 25 25 Most Carried 35 | 8 17 20 20 20 23 24 35 25 25 25 25 25 25 25 25 25 25 25 25 25 25 25 25 25 25 25 25 25 25 25 25 Average Carried 24 | 6 10 19 19 19 20 23 29 24 24 25 24 24 24 24 24 24 24 24 24 24 24 23 24 25 24 25 24 24 24 24 22 Final Capacity 35 | 8 20 20 20 20 35 35 25 25 25 25 25 25 25 25 25 25 25 25 25 25 25 25 25 25 25 25 25 25 25 25 25 Final Carried 25 | 8 17 20 20 20 23 24 25 24 25 25 25 25 24 25 25 25 25 25 25 25 25 24 25 25 25 25 25 24 25 25 23 Class Distribution -------------------- 26% | Mutant 13% | Hacker-Skirmisher 10% | Skirmisher 10% | Hacker-Mutant 6% | Scavenger-Skirmisher 5% | Hauler-Mutant 5% | Hacker-Tank 4% | Scavenger-Mutant Dominant Class ---------------- Mutant | -10/Materials Mutant | -10/Mines Mutant | -9/Materials Mutant | -9/Mines Mutant | -9/Exiles Hauler-Mutant | -8/Mines Hauler-Mutant | -8/Materials Scavenger-Assassin | -7/Factory Skirmisher | -7/Lower Caves Mutant | -7/Data Miner Skirmisher | -6/Proximity Caves Hacker-Mutant | -6/Factory Skirmisher | -6/Lower Caves Mutant | -6/Lower Caves Mutant | -6/Zion Skirmisher | -5/Proximity Caves Hacker-Skirmisher | -5/Factory Hacker-Skirmisher | -5/Extension Scavenger-Tank | -5/Cetus Scavenger-Mutant | -5/Archives Scavenger-Skirmisher | -5/Hub_04(d) Scavenger-Mutant | -4/Factory Hacker-Skirmisher | -4/Upper Caves Hacker-Skirmisher | -4/Upper Caves Hacker-Mutant | -4/Zhirov Scavenger-Skirmisher | -3/Proximity Caves Hacker-Mutant | -3/Research Hacker-Tank | -3/Armory Hacker-Tank | -3/Lab Wizard-Mutant | -2/Research Hacker-Mutant | -1/Access Resources | -11 -10 -10 -9 -9 -9 -8 -8 -7 -7 -7 -6 -6 -6 -6 -6 -5 -5 -5 -5 -5 -5 -4 -4 -4 -4 -3 -3 -3 -3 -2 -1 ----------- Run | Scr Mat Min Mat Min Exi Min Mat Fac Low Dat Pro Fac Low Low Zio Pro Fac Ext Cet Arc Hub Fac Upp Upp Zhi Pro Res Arm Lab Res Acc Matter Collected 14597 | 250 110 321 223 183 . 53 829 715 109 . 198 110 400 611 92 1467 1448 1108 346 291 192 1142 102 212 250 268 724 304 629 1622 288 Remotely . | . . . . . . . . . . . . . . . . . . . . . . . . . . . . . . . . Salvage Created 15349 | 82 276 123 228 203 . 155 833 661 . . 59 183 221 235 . 1224 1467 1525 284 399 260 1893 87 297 . 183 1343 549 72 1615 892 Parts 835 | 5 19 20 17 22 . 11 43 28 . . 8 11 7 9 . 52 101 67 21 27 12 94 2 9 . 9 84 33 4 68 52 Haulers Intercepted 5 | . . . . . . . 1 . . . . . . . . 1 . 1 . . . 2 . . . . . . . . . Recyclers Shooed 11 | . 1 . . . . . . . . . . . . . . . 4 3 . . . 2 . . . . 1 . . . . Parts Field Recycled . | . . . . . . . . . . . . . . . . . . . . . . . . . . . . . . . . Retrieved Matter . | . . . . . . . . . . . . . . . . . . . . . . . . . . . . . . . . Parts Self-Destructed 94 | . . . . . . . . . 3 . 11 . 7 7 4 41 . . . . . . 2 10 . 9 . . . . . Prevented 14 | . . . . . . . . . . . . . . . . 9 . . . . . . . 5 . . . . . . . Kills | -11 -10 -10 -9 -9 -9 -8 -8 -7 -7 -7 -6 -6 -6 -6 -6 -5 -5 -5 -5 -5 -5 -4 -4 -4 -4 -3 -3 -3 -3 -2 -1 ------- Run | Scr Mat Min Mat Min Exi Min Mat Fac Low Dat Pro Fac Low Low Zio Pro Fac Ext Cet Arc Hub Fac Upp Upp Zhi Pro Res Arm Lab Res Acc Combat Hostiles Destroyed 270 | . 8 8 10 13 . 7 16 12 . . 4 8 5 7 . 29 22 18 6 2 4 24 1 4 . 3 18 10 1 19 11 Melee 2 | . . . . . . . . . . . . 2 . . . . . . . . . . . . . . . . . . . Guns 126 | . 6 . 2 5 . 1 5 . . . . . . 1 . 9 22 11 3 2 4 19 . 1 . 2 4 7 . 16 6 Cannons 70 | . 2 2 3 . . . 3 12 . . . 1 5 2 . 8 . 2 . . . 5 1 3 . 1 13 3 . 1 3 AOE 65 | . . 6 5 8 . 6 8 . . . 4 5 . 4 . 11 . 5 3 . . . . . . . . . . . . Classes Destroyed 18 | 2 2 2 2 . . 1 1 1 . . . 1 . . . 1 2 1 . 1 . . . . . . . 1 . . . Worker 24 | . . 1 1 . . . 11 3 . . . . . . . . 1 5 . . . 2 . . . . . . . . . Builder 10 | . . . . . . . . . . . . . . . . . 2 . . . 1 2 . . . . 1 . . 2 2 Tunneler 9 | 1 . . . 1 . 1 1 . . . . . . . . . . 2 . . . 1 . . . . 1 . . . 1 Hauler 5 | . . . . . . . 1 . . . . . . . . 1 . 1 . . . 2 . . . . . . . . . Recycler 10 | 1 1 . . . . . 2 1 . . . . . . . . 2 2 . . . 1 . . . . . . . . . Operator 7 | . . . . . . . . . . . . . . . . . . . . 7 . . . . . . . . . . . Watcher 9 | . . . 1 . . . . 1 . . . . . . . 2 1 . . . . 1 . . . . 1 . . 1 1 Swarmer 70 | . 6 6 6 10 . 3 3 . . . 4 4 . . . 11 7 . . . . 5 . . . 1 . 3 . . 1 Saboteur 1 | . . . . . . . . . . . . 1 . . . . . . . . . . . . . . . . . . . Grunt 74 | . 2 . 1 3 . 2 8 8 . . . 1 3 6 . 9 1 7 4 . 3 9 . 4 . 1 . . . 1 1 Brawler 3 | . . . . . . . . . . . . . . . . 1 . . . . . 2 . . . . . . . . . Duelist 12 | . . . 1 . . . 1 1 . . . . 1 1 . 2 . . . . . 1 . . . 1 . 3 . . . Sentry 33 | . . 2 2 . . . 3 1 . . . . . . . 4 2 7 . 2 1 1 1 . . . 3 1 . 3 . Demolisher 2 | . . . . . . . . . . . . . . . . . . . . . . . . . . . . 2 . . . Hunter 19 | . . . . . . 2 1 . . . . 2 . . . 2 2 . 1 . . 3 . . . . 4 . . . 2 Programmer 34 | . . . . . . . . 2 . . . . 1 . . . 9 2 . . . 1 . . . . 11 1 . 4 3 Heavy 4 | . . . . . . . . . . . . . . . . . 1 . . . . 2 . . . . . . . 1 . Behemoth 1 | . . . . . . . . . . . . . . . . . . 1 . . . . . . . . . . . . . Cetus Guard 1 | . . . . . . . . . . . . . . . . . . . 1 . . . . . . . . . . . . Tracker 7 | . . . . . . . . . . . . . . . . . . . . . . . . . . . . . . 5 2 Combat Programmer 7 | . . . . . . . . . . . . . . . . . . . . . . . . . . . . . . 5 2 Savage 1 | . . . . . . . . . . . . . . . . . . 1 . . . . . . . . . . . . . Butcher 1 | . . . . . . . . . . . . . . . . . . 1 . . . . . . . . . . . . . Best Kill Streak 8 | 1 6 3 8 4 . 7 8 4 . . 4 6 4 4 . 4 6 7 4 1 3 6 1 4 . 3 5 5 1 8 3 Combat Bots Only 7 | . 6 3 7 4 . 6 4 3 . . 4 6 4 4 . 4 5 6 4 1 3 5 1 4 . 3 4 5 1 7 3 Max Kills in Single Turn 5 | 1 1 3 3 3 . 2 4 1 . . 4 5 1 1 . 2 2 4 2 1 2 2 1 1 . 1 2 1 1 2 2 Gunslinging 1 | . . . . . . . . . . . . . . . . . 1 . . . 1 1 . . . . . . . . . Exploded 5 | . . 3 2 3 . 2 2 . . . 4 5 . 1 . 2 . 2 1 . . . . . . . . . . . . Melee 1 | . . . . . . . . . . . . 1 . . . . . . . . . . . . . . . . . . . Uniques/NPCs Destroyed 2 | . . . . . . . . . . . . . . . . . . . 1 . . . . . . . . . 1 . . Revision 17 (-5/Cetus) A5 (-3/Lab) Combat | -11 -10 -10 -9 -9 -9 -8 -8 -7 -7 -7 -6 -6 -6 -6 -6 -5 -5 -5 -5 -5 -5 -4 -4 -4 -4 -3 -3 -3 -3 -2 -1 -------- Run | Scr Mat Min Mat Min Exi Min Mat Fac Low Dat Pro Fac Low Low Zio Pro Fac Ext Cet Arc Hub Fac Upp Upp Zhi Pro Res Arm Lab Res Acc Damage Taken 18355 | . 143 242 356 192 . 199 746 309 27 . 174 249 76 469 . 1934 1925 545 129 48 121 1891 23 282 . 12 1140 1964 83 4008 1068 Core 1256 | . 50 43 38 54 . 18 172 14 5 . 16 16 20 38 . 103 118 . 9 . 15 101 . 39 . . 65 200 10 110 2 Absorbed by Shields 6986 | . . . . . . . . . . . . . . . . . 780 527 134 49 107 496 . 144 . 12 1069 767 85 2064 752 Reduced by Siege Mode 1193 | . . . . . . . . . . . . . . . . . 89 32 . . 12 206 . 33 . . 157 148 9 446 61 Redirected to Shielding 21 | . . . 10 4 . . 4 3 . . . . . . . . . . . . . . . . . . . . . . . Regen/Repaired (Parts) 2392 | . . . . . . . . . . . . . . . . . . . . . . . . . . . 581 416 84 1311 . Core Remaining (%) 85 | 100 . 62 . . . 72 68 . . . 95 . . . . 79 . . . . 85 . . . . 87 . . 99 92 99 Volleys Fired 895 | 10 27 12 21 15 . 9 62 26 2 . 2 8 15 26 3 71 74 48 17 53 9 83 1 12 . 3 62 52 24 108 40 Largest 4 | 2 2 2 2 2 . 2 2 2 2 . 1 2 2 3 1 3 3 3 3 3 3 3 3 3 . 3 3 3 3 3 4 Hottest 225 | 70 89 89 89 70 . 53 109 96 96 . 48 117 142 172 90 184 105 108 101 125 105 184 184 129 . 129 209 183 183 143 225 Shots Fired 1859 | 20 53 18 36 24 . 11 101 50 4 . 2 12 23 46 3 146 181 127 43 66 19 194 3 26 . 9 148 108 56 215 115 Gun 1133 | 20 43 8 17 18 . 2 59 3 . . . . . 10 . 51 165 100 40 19 15 134 1 14 . 6 61 69 32 171 75 Cannon 638 | . 10 6 12 . . . 25 47 4 . 1 12 23 28 3 72 16 19 . 47 4 58 2 12 . 3 87 39 24 44 40 Launcher 88 | . . 4 7 6 . 9 17 . . . 1 . . 8 . 23 . 8 3 . . 2 . . . . . . . . . Special . | . . . . . . . . . . . . . . . . . . . . . . . . . . . . . . . . Kinetic 1280 | 10 27 6 12 9 . 2 59 47 4 . 1 4 8 20 . 80 165 119 40 19 15 169 2 21 . 9 85 69 32 171 75 Thermal 455 | 10 26 8 17 9 . . 15 . . . . 3 15 18 3 25 16 . . 47 4 23 1 5 . . 63 39 24 44 40 Explosive 86 | . . 4 7 6 . 9 17 . . . 1 . . 8 . 23 . 8 3 . . . . . . . . . . . . Electromagnetic 38 | . . . . . . . 10 3 . . . 5 . . . 18 . . . . . 2 . . . . . . . . . Robot Hit Streak 37 | 8 5 17 19 10 . 5 13 29 6 . 3 3 5 9 . 16 24 33 18 22 13 37 9 14 . 19 27 15 11 34 12 Robot Miss Streak 7 | 2 3 . 2 3 . 1 4 3 1 . . 5 2 4 . 3 4 4 7 3 1 3 . 1 . . 2 2 3 2 3 Penetration Max 2 | . . . . . . . . 1 . . . . . . . 1 2 1 1 . . 1 . . . . 1 1 . 1 1 Secondary Targets 20 | . . . . . . . . . . . . . . . . 1 7 1 . . 2 2 . . . . . 2 . 5 . Max Gunslinging Chain 2 | . . . . . . . . . . . . . . . . 1 2 1 . . 2 2 . . . . . 1 . 1 . Shots Hit Robots 1212 | 14 29 15 20 10 . 7 70 41 3 . 1 3 9 23 . 91 114 93 26 46 13 138 3 18 . 5 103 69 33 152 63 Core Hits 652 | 3 12 10 15 18 . 14 46 16 1 . 5 7 6 15 . 69 49 65 23 20 8 66 1 8 . 4 38 26 5 68 34 Critical Kills 40 | . . . . . . . . . . . . . . . . 1 1 1 . 1 3 12 1 3 . 1 7 . 1 4 4 Critical Parts Destroyed 51 | . . . . . . . . 1 . . . . . . . . 2 2 2 1 . 10 . 4 . . 12 2 . 11 4 Critical Strikes 109 | . . 1 1 . . . 3 4 1 . . . . . . 3 3 4 2 2 3 26 1 7 . 1 19 3 1 16 8 Burn 4 | . . 1 1 . . . 2 . . . . . . . . . . . . . . . . . . . . . . . . Meltdown 6 | . . . . . . . . . . . . . . . . . . . . . . . . . . . 1 . 1 2 2 Destroy 91 | . . . . . . . . . . . . . . . . 1 3 4 2 2 3 26 1 7 . 1 18 3 . 14 6 Blast 7 | . . . . . . . 1 3 1 . . . . . . 2 . . . . . . . . . . . . . . . Smash 1 | . . . . . . . . 1 . . . . . . . . . . . . . . . . . . . . . . . Melee Attacks 35 | . . . . . . . 2 22 . . 2 5 . . . 2 2 . . . . . . . . . . . . . . Impact 16 | . . . . . . . 2 14 . . . . . . . . . . . . . . . . . . . . . . . Slashing 19 | . . . . . . . . 8 . . 2 5 . . . 2 2 . . . . . . . . . . . . . . Piercing . | . . . . . . . . . . . . . . . . . . . . . . . . . . . . . . . . Sneak Attacks 5 | . . . . . . . . 4 . . . . . . . 1 . . . . . . . . . . . . . . . Combat Hostiles . | . . . . . . . . . . . . . . . . . . . . . . . . . . . . . . . . Follow-up Attacks . | . . . . . . . . . . . . . . . . . . . . . . . . . . . . . . . . Damage Inflicted 45021 | 153 443 577 606 570 . 560 2743 1377 61 . 364 909 394 1093 . 4847 3641 4243 1401 1555 530 4491 85 426 . 134 3302 2062 806 4939 2709 Guns 23129 | 153 275 86 163 90 . 20 654 47 . . . . . 110 . 905 3641 2354 683 349 376 3453 28 346 . 114 1580 1439 429 4213 1621 Cannons 11550 | . 168 122 149 . . . 581 1065 61 . . 116 394 376 . 1630 . 501 . 1206 . 531 57 80 . 20 1679 623 377 726 1088 Explosions 9716 | . . 369 294 480 . 540 1508 . . . 364 782 . 607 . 2222 . 1319 718 . 154 359 . . . . . . . . . Melee 355 | . . . . . . . . 265 . . . . . . . 90 . . . . . . . . . . . . . . . Ramming 271 | . . . . . . . . . . . . 11 . . . . . 69 . . . 148 . . . . 43 . . . . Kinetic 26730 | 56 271 122 149 23 . 20 781 1032 61 . . 88 225 304 . 1540 3641 2855 683 349 376 3915 46 426 . 134 1931 1439 429 4213 1621 Thermal 8306 | 97 172 86 163 67 . . 209 . . . . 782 169 182 . 607 . . . 1206 . 385 39 . . . 1328 623 377 726 1088 Explosive 8392 | . . 369 294 480 . 540 1479 . . . 364 . . 607 . 2222 . 1319 718 . . . . . . . . . . . . Electromagnetic 967 | . . . . . . . 274 80 . . . 28 . . . 388 . . . . 154 43 . . . . . . . . . Impact 107 | . . . . . . . . 107 . . . . . . . . . . . . . . . . . . . . . . . Slashing 248 | . . . . . . . . 158 . . . . . . . 90 . . . . . . . . . . . . . . . Piercing . | . . . . . . . . . . . . . . . . . . . . . . . . . . . . . . . . Highest Corruption 30 | . . 7 . . . . . 1 1 1 1 . . . . . 5 6 6 12 6 . . . . . 15 17 18 30 10 Average Corruption 6 | . . 5 . . . . . 1 1 1 1 . . . . . 3 5 6 6 3 . . . . . 5 15 17 12 5 Corruption Purged 15 | . . . . . . . . . . . . . . . . . . . . 15 . . . . . . . . . . . Corruption Blocked . | . . . . . . . . . . . . . . . . . . . . . . . . . . . . . . . . Effects 223 | . . . . . . . . 2 3 1 10 . . . . . 25 49 20 8 2 . . . . . 23 23 18 38 1 Message Errors 57 | . . . . . . . . 2 1 1 2 . . . . . 7 4 5 2 1 . . . . . 6 10 2 14 . Matter Fused 53 | . . . . . . . . . 2 . 5 . . . . . 6 13 5 3 1 . . . . . 2 3 7 6 . Heat Flow Errors 18 | . . . . . . . . . . . . . . . . . 4 8 1 . . . . . . . 2 1 1 1 . Energy Discharges 25 | . . . . . . . . . . . 1 . . . . . 1 7 3 . . . . . . . 4 2 2 5 . Parts Rejected 2 | . . . . . . . . . . . . . . . . . . . 1 . . . . . . . . 1 . . . Data Loss (minor) 28 | . . . . . . . . . . . . . . . . . 2 7 2 2 . . . . . . 3 2 4 5 1 Data Loss (major) 10 | . . . . . . . . . . . 2 . . . . . 2 2 . 1 . . . . . . 1 . . 2 . Misfires 11 | . . . . . . . . . . . . . . . . . 1 4 1 . . . . . . . 3 1 . 1 . Alerts 1 | . . . . . . . . . . . . . . . . . . 1 . . . . . . . . . . . . . Weapon Failures 18 | . . . . . . . . . . . . . . . . . 2 3 2 . . . . . . . 2 3 2 4 . Overload Shots . | . . . . . . . . . . . . . . . . . . . . . . . . . . . . . . . . Overflow Damage 861 | . . . . 3 . 15 70 76 . . 5 233 . . . 23 . 49 44 132 . 91 . . . . 86 34 . . . Projectiles 302 | . . . . . . . 11 35 . . . . . . . 1 . 6 . 132 . . . . . . 83 34 . . . Explosions 496 | . . . . 3 . 15 59 . . . 5 233 . . . 22 . 43 44 . . 72 . . . . . . . . . Melee 63 | . . . . . . . . 41 . . . . . . . . . . . . . 19 . . . . 3 . . . . Knockbacks 34 | . . 1 3 . . . 3 12 . . . . . 3 . 1 . 2 . . . 3 . 1 . . 5 . . . . Impact 1 | . . . . . . . . . . . . . . . . . . . . . . . . . . . 1 . . . . Kinetic 31 | . . 1 3 . . . 3 10 . . . . . 3 . 1 . 2 . . . 3 . 1 . . 4 . . . . Secondary 2 | . . . . . . . . 2 . . . . . . . . . . . . . . . . . . . . . . . Self-Inflicted Damage 346 | . . 31 40 60 . 40 . . . . . 63 . . . 1 . . . . 93 18 . . . . . . . . . Shots 10 | . . 1 1 2 . 1 . . . . . 2 . . . 1 . . . . 1 1 . . . . . . . . . Rammed 12 | . . . . . . . . . . . . . . . . . . 5 . . . 5 . . . . 1 1 . . . Targets Rammed 13 | . . . . . . . . . . . . 1 . . . . . 5 . . . 5 . . . . 1 1 . . . Kicked . | . . . . . . . . . . . . . . . . . . . . . . . . . . . . . . . . Crushed 1 | . . . . . . . . . . . . 1 . . . . . . . . . . . . . . . . . . . Highest Temperature 416 | 72 117 151 293 36 . 3 320 261 18 . 10 129 198 195 267 339 416 357 231 324 216 329 123 370 . . 226 195 251 216 326 Average Temperature 98 | 32 48 64 93 14 . 3 119 105 12 . 7 51 81 85 90 115 112 104 46 150 102 94 69 117 . . 59 97 101 56 101 Received Heat Transfer 2329 | . 6 54 99 27 . 27 396 93 6 . 9 18 54 240 . 528 147 111 20 . 35 262 9 93 . . 28 50 . 17 . Effects 14 | . . . . . . . . . . . . . . . . 4 . 2 . 4 . 3 . 1 . . . . . . . Shutdowns 1 | . . . . . . . . . . . . . . . . . . . . . . . . 1 . . . . . . . Energy Bleed 1 | . . . . . . . . . . . . . . . . . . . . . . 1 . . . . . . . . . Interference 10 | . . . . . . . . . . . . . . . . 2 . 2 . 4 . 2 . . . . . . . . . Short Circuit 2 | . . . . . . . . . . . . . . . . 2 . . . . . . . . . . . . . . . Siege Activations 47 | . . . . . . . . . . . . . . . . . 5 3 . . 2 7 1 1 . 1 8 4 1 8 6 Total Turns 1151 | . . . . . . . . . . . . . . . . . 133 64 . . 14 213 7 27 . 22 180 90 90 219 92 Longest Duration 95 | . . . . . . . . . . . . . . . . . 63 31 . . 12 75 7 27 . 22 46 38 90 95 21 Robots Corrupted 1 | . . . . . . . . . . . . . . . . 1 . . . . . . . . . . . . . . . Combat Hostiles 1 | . . . . . . . . . . . . . . . . 1 . . . . . . . . . . . . . . . Parts Fried 5 | . . . . . . . 1 2 . . . . . . . 2 . . . . . . . . . . . . . . . Impact Corruptions 5 | . . . . . . . . 2 . . . . . . . . . . . . . 2 . . . . 1 . . . . Robots Melted 6 | . . . . . . . . . . . . . . . . . . . . . . . . . . . 1 . 1 2 2 Combat Hostiles 6 | . . . . . . . . . . . . . . . . . . . . . . . . . . . 1 . 1 2 2 Parts Melted 29 | . 1 . 4 2 . . . . . . . . 1 . . 1 . . . . . . . . . . 4 . 3 7 6 Heat Transferred 9223 | 296 518 333 555 185 . . 531 . . . . 500 185 222 . 703 . . . 1295 . 274 37 . . . 1147 592 407 592 851 Parts Sabotaged 3 | . . . . . . . . . . . . 1 . . . . . . . . . 2 . . . . . . . . . Parts Stolen . | . . . . . . . . . . . . . . . . . . . . . . . . . . . . . . . . Parts Stripped . | . . . . . . . . . . . . . . . . . . . . . . . . . . . . . . . . Power Chain Reactions 1 | . . . . . . . 1 . . . . . . . . . . . . . . . . . . . . . . . . Missiles Intercepted . | . . . . . . . . . . . . . . . . . . . . . . . . . . . . . . . . Alert | -11 -10 -10 -9 -9 -9 -8 -8 -7 -7 -7 -6 -6 -6 -6 -6 -5 -5 -5 -5 -5 -5 -4 -4 -4 -4 -3 -3 -3 -3 -2 -1 ------- Run | Scr Mat Min Mat Min Exi Min Mat Fac Low Dat Pro Fac Low Low Zio Pro Fac Ext Cet Arc Hub Fac Upp Upp Zhi Pro Res Arm Lab Res Acc Peak Influence 1239 | 10 214 250 375 461 . 180 260 246 . . . 617 . . . . 354 931 1239 802 524 651 . . . . 538 444 . 242 313 Initial 495 | . 6 . 31 145 . . 11 93 . . . 75 . . . . 94 32 339 495 210 256 . . . . . 223 . . 94 Average 234 | 5 85 98 89 257 . 63 107 89 . . . 232 . . . . 151 303 740 692 202 495 . . . . 200 335 . 99 163 Maximum Alert Level 4 | . 1 1 1 2 . . 1 1 . . . 2 . . . . 1 3 4 3 2 2 . . . . 2 2 . 1 1 Low Security (%) 56 | 100 96 84 90 13 . 100 77 89 . . . 52 . . . . 80 54 . . 55 . . . . . 52 . . 82 74 Level 1 23 | . 3 15 9 83 . . 22 10 . . . 26 . . . . 19 11 6 . 28 24 . . . . 31 70 . 17 25 Level 2 13 | . . . . 3 . . . . . . . 21 . . . . . 14 46 42 15 75 . . . . 15 29 . . . Level 3 5 | . . . . . . . . . . . . . . . . . . 19 35 57 . . . . . . . . . . . Level 4 . | . . . . . . . . . . . . . . . . . . . 12 . . . . . . . . . . . . Level 5 . | . . . . . . . . . . . . . . . . . . . . . . . . . . . . . . . . High Security . | . . . . . . . . . . . . . . . . . . . . . . . . . . . . . . . . Max Security . | . . . . . . . . . . . . . . . . . . . . . . . . . . . . . . . . Squads Dispatched 52 | . 1 . 1 . . 1 2 3 . . . 3 . . . . 9 . . . 1 9 . . . . 5 1 . 11 5 Investigation 3 | . 1 . 1 . . . . . . . . . . . . . 1 . . . . . . . . . . . . . . Extermination 18 | . . . . . . . . 2 . . . . . . . . 4 . . . . 2 . . . . 3 1 . 4 2 Reinforcement 13 | . . . . . . 1 2 1 . . . 2 . . . . 1 . . . 1 4 . . . . 1 . . . . Assault 4 | . . . . . . . . . . . . 1 . . . . . . . . . 3 . . . . . . . . . Garrison 4 | . . . . . . . . . . . . . . . . . 3 . . . . . . . . . 1 . . . . Intercept 10 | . . . . . . . . . . . . . . . . . . . . . . . . . . . . . . 7 3 Searches Triggered . | . . . . . . . . . . . . . . . . . . . . . . . . . . . . . . . . Data Miner Redirects 3 | . . . . . . . . . . . . . . . . . 1 . . . . 2 . . . . . . . . . Construction Impeded 4 | . . . . . . 1 . . . . . . . . . . 1 . . . 1 1 . . . . . . . . . Haulers Reinforced . | . . . . . . . . . . . . . . . . . . . . . . . . . . . . . . . . Active Scanning Responses . | . . . . . . . . . . . . . . . . . . . . . . . . . . . . . . . . Cargo Convoy Interrupts . | . . . . . . . . . . . . . . . . . . . . . . . . . . . . . . . . Stealth | -11 -10 -10 -9 -9 -9 -8 -8 -7 -7 -7 -6 -6 -6 -6 -6 -5 -5 -5 -5 -5 -5 -4 -4 -4 -4 -3 -3 -3 -3 -2 -1 --------- Run | Scr Mat Min Mat Min Exi Min Mat Fac Low Dat Pro Fac Low Low Zio Pro Fac Ext Cet Arc Hub Fac Upp Upp Zhi Pro Res Arm Lab Res Acc Distress Signals 18 | . . . 1 . . . 3 . . . . . . . . 1 3 3 2 . . 2 . . . . . 2 . . 1 Communications Jammed 208 | . . . . . . . . . . . . . . . . . 8 . . . . 112 . . . . 22 34 . 13 19 Distress Signals 187 | . . . . . . . . . . . . . . . . . 1 . . . . 105 . . . . 22 34 . 6 19 Times Spotted 449 | . 12 6 14 13 . 7 26 18 2 . 9 15 5 7 . 39 34 39 25 39 8 39 1 4 . 3 26 18 1 21 18 Peak Tracking Total 8 | . 5 3 3 3 . 4 5 4 1 . 8 5 4 4 . 5 6 6 8 2 6 6 1 4 . 3 5 6 1 7 4 Tactical Retreats 6 | . . . . 1 . . . . . . . . . . . 1 2 . . . . 1 . . . . . 1 . . . Traps | -11 -10 -10 -9 -9 -9 -8 -8 -7 -7 -7 -6 -6 -6 -6 -6 -5 -5 -5 -5 -5 -5 -4 -4 -4 -4 -3 -3 -3 -3 -2 -1 ------- Run | Scr Mat Min Mat Min Exi Min Mat Fac Low Dat Pro Fac Low Low Zio Pro Fac Ext Cet Arc Hub Fac Upp Upp Zhi Pro Res Arm Lab Res Acc Traps Triggered 10 | . 1 1 . . . . . 1 . . . 1 . . . 1 . . . . . . . . . . 2 . . 3 . Indirectly . | . . . . . . . . . . . . . . . . . . . . . . . . . . . . . . . . Trap Hack Attempts . | . . . . . . . . . . . . . . . . . . . . . . . . . . . . . . . . Triggered . | . . . . . . . . . . . . . . . . . . . . . . . . . . . . . . . . Disarmed 2 | . . . . . . . . . . . . . . . . . . 2 . . . . . . . . . . . . . Reprogrammed . | . . . . . . . . . . . . . . . . . . . . . . . . . . . . . . . . Reused . | . . . . . . . . . . . . . . . . . . . . . . . . . . . . . . . . Traps Extracted . | . . . . . . . . . . . . . . . . . . . . . . . . . . . . . . . . Installed . | . . . . . . . . . . . . . . . . . . . . . . . . . . . . . . . . Triggered 5 | . . . . . . . . . . . 2 . . . . . . . . . . . . 3 . . . . . . . Machines | -11 -10 -10 -9 -9 -9 -8 -8 -7 -7 -7 -6 -6 -6 -6 -6 -5 -5 -5 -5 -5 -5 -4 -4 -4 -4 -3 -3 -3 -3 -2 -1 ---------- Run | Scr Mat Min Mat Min Exi Min Mat Fac Low Dat Pro Fac Low Low Zio Pro Fac Ext Cet Arc Hub Fac Upp Upp Zhi Pro Res Arm Lab Res Acc Machines Disabled 68 | . . . 1 1 . . 4 1 . . . 11 . . . 2 3 2 6 4 14 7 . . . . 2 5 4 1 . Max in Single Turn 12 | . . . 1 1 . . 1 1 . . . 11 . . . 1 1 1 1 2 12 5 . . . . 1 1 1 1 . Garrison Access 3 | . . . . . . . . 1 . . . . . . . . . . . . . 1 . . . . . . . 1 . Network Hub 1 | . . . . . . . . . . . . . . . . . . . . . 1 . . . . . . . . . . Machines Sabotaged . | . . . . . . . . . . . . . . . . . . . . . . . . . . . . . . . . Garrisons Compromised . | . . . . . . . . . . . . . . . . . . . . . . . . . . . . . . . . Overloaded Fab Kills . | . . . . . . . . . . . . . . . . . . . . . . . . . . . . . . . . Hacking | -11 -10 -10 -9 -9 -9 -8 -8 -7 -7 -7 -6 -6 -6 -6 -6 -5 -5 -5 -5 -5 -5 -4 -4 -4 -4 -3 -3 -3 -3 -2 -1 --------- Run | Scr Mat Min Mat Min Exi Min Mat Fac Low Dat Pro Fac Low Low Zio Pro Fac Ext Cet Arc Hub Fac Upp Upp Zhi Pro Res Arm Lab Res Acc Machines Accessed 80 | . 5 1 3 1 2 1 3 4 2 4 . 4 1 . . 2 7 7 . . 3 4 2 . 5 . 5 4 1 5 4 Terminals 48 | . 4 . 3 1 . 1 3 2 . . . 4 . . . 1 5 6 . . 3 3 1 . . . 3 3 . 2 3 Fabricators 2 | . . . . . . . . . . . . . . . . . 1 . . . . . . . . . . . . 1 . Repair Stations 3 | . . . . . . . . . . . . . . . . . . . . . . . . . . . 1 1 . 1 . Recycling Units 3 | . 1 . . . . . . . . . . . . . . 1 . 1 . . . . . . . . . . . . . Scanalyzers 2 | . . . . . . . . . . . . . . . . . 1 . . . . . . . . . 1 . . . . Garrison Access 5 | . . . . . . . . 2 . . . . . . . . . . . . . 1 . . . . . . . 1 1 Total Hacks 299 | . 15 1 10 2 2 2 16 8 6 28 . 10 1 . . 3 21 40 . . 10 13 2 . 18 . 39 16 1 23 12 Successful 203 | . 9 1 6 . 2 1 9 4 6 28 . 7 1 . . 2 14 26 . . 8 9 2 . 18 . 19 7 1 18 5 Failed 95 | . 5 . 4 2 . 1 7 4 . . . 3 . . . 1 7 14 . . 2 4 . . . . 20 9 . 5 7 Catastrophic 12 | . . . . . . . . 2 . . . 1 . . . . 1 1 . . . 2 . . . . 3 1 . . 1 Database Lockouts 1 | . 1 . . . . . . . . . . . . . . . . . . . . . . . . . . . . . . Manual 126 | . 11 . 7 2 1 2 4 5 . . . 6 . . . . 8 31 1 . 7 6 . . . . 17 2 1 9 6 Terminals 202 | . 13 . 10 2 . 2 16 6 . . . 10 . . . 1 17 38 . . 10 12 1 . . . 30 13 . 11 10 Fabricators 5 | . . . . . . . . . . . . . . . . . 2 . . . . . . . . . . . . 3 . Repair Stations 14 | . . . . . . . . . . . . . . . . . . . . . . . . . . . 3 3 . 8 . Recycling Units 6 | . 2 . . . . . . . . . . . . . . 2 . 2 . . . . . . . . . . . . . Scanalyzers 8 | . . . . . . . . . . . . . . . . . 2 . . . . . . . . . 6 . . . . Garrison Access 6 | . . . . . . . . 2 . . . . . . . . . . . . . 1 . . . . . . . 1 2 Terminal Hacks 144 | . 7 1 4 . 2 1 9 1 6 28 . 4 1 . . 1 8 16 . . 6 7 2 . 18 . 9 4 1 6 2 Record 25 | . . . . . 1 . . . 5 11 . . . . . . . . . . . . 1 . 6 . . . 1 . . Part Schematic 14 | . 1 . . . . . . . . 9 . . . . . . . . . . . . . . 4 . . . . . . Robot Schematic 5 | . . . . . . . . . . 5 . . . . . . . . . . . . . . . . . . . . . Robot Analysis 11 | . . . 2 . . . . . . . . . . . . . . 5 . . . . . . 4 . . . . . . Prototype ID Bank 18 | . 3 . . . . . 3 . . 3 . 1 . . . . 1 1 . . 1 . . . 4 . 1 . . . . Open Door 7 | . . 1 . . . . . . 1 . . . 1 . . 1 1 . . . . . 1 . . . . . . . 1 Open DSF 1 | . . . . . . . . . . . . . . . . . . . . . . 1 . . . . . . . . . Level Access Points 1 | . . . . . . . . . . . . . . . . . . . . . . . . . . . . . . 1 . Branch Access Points 7 | . . . 1 . . . 1 . . . . 1 . . . . 1 . . . . 1 . . . . 1 . . 1 . Machine Index 1 | . . . . . . . . . . . . . . . . . . . . . . . . . . . . . . 1 . Terminal Index 2 | . . . . . . . . . . . . . . . . . . . . . . 1 . . . . 1 . . . . Repair Station Index 2 | . . . . . . . . . . . . . . . . . . . . . . . . . . . 1 1 . . . Alert Level 5 | . 1 . . . . . 1 . . . . . . . . . . 1 . . 1 . . . . . 1 . . . . Unreport Threat 20 | . 1 . . . . 1 2 . . . . 1 . . . . 3 5 . . 2 2 . . . . . 1 . 2 . Locate Traps 13 | . 1 . 1 . . . 2 1 . . . 1 . . . . 1 1 . . 1 . . . . . 2 2 . . . Disarm Traps 1 | . . . . . . . . . . . . . . . . . . 1 . . . . . . . . . . . . . Recall Extermination 1 | . . . . . . . . . . . . . . . . . . . . . . . . . . . . . . 1 . Recall Reinforcements 1 | . . . . . . . . . . . . . . . . . . . . . . 1 . . . . . . . . . Hauler Manifests 2 | . . . . . . . . . . . . . . . . . . 1 . . . . . . . . 1 . . . . Registered Components 2 | . . . . . . . . . . . . . . . . . 1 . . . . . . . . . 1 . . . . Zone Layout 4 | . . . . . . . . . . . . . . . . . . 1 . . 1 1 . . . . . . . . 1 EX-Prototype ID Bank 1 | . . . . . 1 . . . . . . . . . . . . . . . . . . . . . . . . . . Fabricator Hacks 3 | . . . . . . . . . . . . . . . . . 2 . . . . . . . . . . . . 1 . Network Status 1 | . . . . . . . . . . . . . . . . . . . . . . . . . . . . . . 1 . Load Schematic 1 | . . . . . . . . . . . . . . . . . 1 . . . . . . . . . . . . . . Build 1 | . . . . . . . . . . . . . . . . . 1 . . . . . . . . . . . . . . Repair Station Hacks 10 | . . . . . . . . . . . . . . . . . . . . . . . . . . . 2 2 . 6 . Scan Component 5 | . . . . . . . . . . . . . . . . . . . . . . . . . . . 1 1 . 3 . Repair 5 | . . . . . . . . . . . . . . . . . . . . . . . . . . . 1 1 . 3 . Recycling Unit Hacks 2 | . . . . . . . . . . . . . . . . 1 . 1 . . . . . . . . . . . . . Report Inventory 1 | . . . . . . . . . . . . . . . . 1 . . . . . . . . . . . . . . . Retrieve Components 1 | . . . . . . . . . . . . . . . . . . 1 . . . . . . . . . . . . . Scanalyzer 7 | . . . . . . . . . . . . . . . . . 2 . . . . . . . . . 5 . . . . Insert Component 4 | . . . . . . . . . . . . . . . . . 2 . . . . . . . . . 2 . . . . Analyze 3 | . . . . . . . . . . . . . . . . . . . . . . . . . . . 3 . . . . Garrison Access Hacks 3 | . . . . . . . . 1 . . . . . . . . . . . . . 1 . . . . . . . 1 . Seal Access 3 | . . . . . . . . 1 . . . . . . . . . . . . . 1 . . . . . . . 1 . Unauthorized Hacks 34 | . 2 . 2 . . . . 2 . . . 3 . . . . 2 9 . . 2 1 . . . . 3 1 . 4 3 Terminals 32 | . 2 . 2 . . . . 2 . . . 3 . . . . 2 9 . . 2 1 . . . . 3 1 . 2 3 Track 5 | . 1 . . . . . . . . . . . . . . . . 3 . . 1 . . . . . . . . . . Assimilate 3 | . . . . . . . . . . . . . . . . . . 2 . . . . . . . . . . . 1 . Botnet 20 | . 1 . 2 . . . . 2 . . . 3 . . . . 2 2 . . 1 1 . . . . 2 1 . 1 2 Disrupt 3 | . . . . . . . . . . . . . . . . . . 2 . . . . . . . . . . . . 1 Operators 1 | . . . . . . . . . . . . . . . . . . . . . . . . . . . 1 . . . . Fabricators 2 | . . . . . . . . . . . . . . . . . . . . . . . . . . . . . . 2 . Liberate 1 | . . . . . . . . . . . . . . . . . . . . . . . . . . . . . . 1 . Haulers 1 | . . . . . . . . . . . . . . . . . . . . . . . . . . . . . . 1 . Repair Stations . | . . . . . . . . . . . . . . . . . . . . . . . . . . . . . . . . Recycling Units . | . . . . . . . . . . . . . . . . . . . . . . . . . . . . . . . . Scanalyzers . | . . . . . . . . . . . . . . . . . . . . . . . . . . . . . . . . Garrison Access . | . . . . . . . . . . . . . . . . . . . . . . . . . . . . . . . . Data Cores Recovered 1 | . . . 1 . . . . . . . . . . . . . . . . . . . . . . . . . . . . Used . | . . . . . . . . . . . . . . . . . . . . . . . . . . . . . . . . Hacking Detections 50 | . 5 . 3 1 . 1 3 3 . . . 4 . . . 1 5 6 . . 3 2 . . . . 4 3 . 3 3 Full Trace Events 3 | . . . 1 . . . 1 . . . . . . . . . 1 . . . . . . . . . . . . . . Feedback Events . | . . . . . . . . . . . . . . . . . . . . . . . . . . . . . . . . Feedback Blocked . | . . . . . . . . . . . . . . . . . . . . . . . . . . . . . . . . Robot Schematics Acquired 8 | . . . . . . . . . . 5 . . . . 3 . . . . . . . . . . . . . . . . Robots Built . | . . . . . . . . . . . . . . . . . . . . . . . . . . . . . . . . Authchips . | . . . . . . . . . . . . . . . . . . . . . . . . . . . . . . . . Time . | . . . . . . . . . . . . . . . . . . . . . . . . . . . . . . . . Total Robot Build Rating . | . . . . . . . . . . . . . . . . . . . . . . . . . . . . . . . . Part Schematics Acquired 29 | . 1 . . . . . . . . 9 . . . . 14 . . . . . . . . . 4 . 1 . . . . Parts Built 2 | . . . . . . . . . . . . . . . . . 2 . . . . . . . . . . . . . . Authchips . | . . . . . . . . . . . . . . . . . . . . . . . . . . . . . . . . Time 106 | . . . . . . . . . . . . . . . . . 106 . . . . . . . . . . . . . . Total Part Build Rating 12 | . . . . . . . . . . . . . . . . . 12 . . . . . . . . . . . . . . Parts Repaired 5 | . . . . . . . . . . . . . . . . . . . . . . . . . . . 1 1 . 3 . Time 181 | . . . . . . . . . . . . . . . . . . . . . . . . . . . 36 54 . 91 . Parts Recycled . | . . . . . . . . . . . . . . . . . . . . . . . . . . . . . . . . Recycled Matter . | . . . . . . . . . . . . . . . . . . . . . . . . . . . . . . . . Retrieved Matter . | . . . . . . . . . . . . . . . . . . . . . . . . . . . . . . . . Retrieved Components 10 | . . . . . . . . . . . . . . . . . . 10 . . . . . . . . . . . . . Parts Scanalyzed 1 | . . . . . . . . . . . . . . . . . . . . . . . . . . . 1 . . . . Part Schematics Acquired 1 | . . . . . . . . . . . . . . . . . . . . . . . . . . . 1 . . . . Parts Damaged . | . . . . . . . . . . . . . . . . . . . . . . . . . . . . . . . . Bothacking | -11 -10 -10 -9 -9 -9 -8 -8 -7 -7 -7 -6 -6 -6 -6 -6 -5 -5 -5 -5 -5 -5 -4 -4 -4 -4 -3 -3 -3 -3 -2 -1 ------------ Run | Scr Mat Min Mat Min Exi Min Mat Fac Low Dat Pro Fac Low Low Zio Pro Fac Ext Cet Arc Hub Fac Upp Upp Zhi Pro Res Arm Lab Res Acc Used RIF Installer . | . . . . . . . . . . . . . . . . . . . . . . . . . . . . . . . . Robots Hacked . | . . . . . . . . . . . . . . . . . . . . . . . . . . . . . . . . Non-combat . | . . . . . . . . . . . . . . . . . . . . . . . . . . . . . . . . Combat . | . . . . . . . . . . . . . . . . . . . . . . . . . . . . . . . . Robot Hacks Applied . | . . . . . . . . . . . . . . . . . . . . . . . . . . . . . . . . Relay Couplers Released . | . . . . . . . . . . . . . . . . . . . . . . . . . . . . . . . . Fabnet Peak Effective % . | . . . . . . . . . . . . . . . . . . . . . . . . . . . . . . . . Robots Rewired 26 | . . . . . . . . . . . . . . . . 11 . 15 . . . . . . . . . . . . . Allies Hacked 1 | . . . . . . . . . . . . . . . . . 1 . . . . . . . . . . . . . . Hacks Repelled 1 | . . . . . . . . . . . . . . . . . . 1 . . . . . . . . . . . . . Allies | -11 -10 -10 -9 -9 -9 -8 -8 -7 -7 -7 -6 -6 -6 -6 -6 -5 -5 -5 -5 -5 -5 -4 -4 -4 -4 -3 -3 -3 -3 -2 -1 -------- Run | Scr Mat Min Mat Min Exi Min Mat Fac Low Dat Pro Fac Low Low Zio Pro Fac Ext Cet Arc Hub Fac Upp Upp Zhi Pro Res Arm Lab Res Acc Total Allies 51 | . . . . 3 . . . 3 2 . 1 . . . 2 11 . 25 3 . . . . . . . . . . 1 . Largest Group 13 | . . . . 3 3 . . 3 5 5 4 4 2 . 2 5 4 13 13 5 4 2 . . . . . . . 1 . Highest-Rated Group 532 | . . . . 72 72 . . 93 155 155 189 189 127 . 51 173 130 518 532 450 314 118 . . . . . . . 45 . Highest-Rated Ally 159 | . . . . 31 31 . . 31 31 31 96 96 96 . 31 43 43 159 159 136 96 96 . . . . . . . 45 . Total Orders 27 | . . . . . . . . . . . . . . . . 2 2 4 . 4 4 6 1 2 . . . . . 2 . STAY 12 | . . . . . . . . . . . . . . . . 1 1 2 . 2 2 3 . . . . . . . 1 . FOLLOW 12 | . . . . . . . . . . . . . . . . 1 1 2 . 2 2 3 . . . . . . . 1 . EXPLORE 3 | . . . . . . . . . . . . . . . . . . . . . . . 1 2 . . . . . . . Ally Attacks 486 | . . . . 5 . . . 15 15 . 15 25 24 . . 49 29 133 132 16 18 10 . . . . . . . . . Total Damage 11201 | . . . . 42 . . . 170 302 . 263 484 518 . . 806 480 2675 3944 673 611 233 . . . . . . . . . Kills 86 | . . . . 2 . . . 2 2 . 4 6 . . . 8 3 24 29 2 4 . . . . . . . . . . Allies Corrupted . | . . . . . . . . . . . . . . . . . . . . . . . . . . . . . . . . Allies Melted . | . . . . . . . . . . . . . . . . . . . . . . . . . . . . . . . . Intel | -11 -10 -10 -9 -9 -9 -8 -8 -7 -7 -7 -6 -6 -6 -6 -6 -5 -5 -5 -5 -5 -5 -4 -4 -4 -4 -3 -3 -3 -3 -2 -1 ------- Run | Scr Mat Min Mat Min Exi Min Mat Fac Low Dat Pro Fac Low Low Zio Pro Fac Ext Cet Arc Hub Fac Upp Upp Zhi Pro Res Arm Lab Res Acc Robot Analysis Total 11 | . . . 2 . . . . . . . . . . . . . . 5 . . . . . . 4 . . . . . . Derelict Logs Recovered 12 | . . 3 . 1 . . . . 1 . 2 . 1 1 1 1 . . . . . . 1 . . . . . . . . Drone Launches 4 | . . . . . . . . . . . . . . . . . . . . . . . 2 2 . . . . . . . Drone Recoveries 4 | . . . . . . . . . . . . . . . . . . . . . . . 2 2 . . . . . . . Exploration | -11 -10 -10 -9 -9 -9 -8 -8 -7 -7 -7 -6 -6 -6 -6 -6 -5 -5 -5 -5 -5 -5 -4 -4 -4 -4 -3 -3 -3 -3 -2 -1 ------------- Run | Scr Mat Min Mat Min Exi Min Mat Fac Low Dat Pro Fac Low Low Zio Pro Fac Ext Cet Arc Hub Fac Upp Upp Zhi Pro Res Arm Lab Res Acc Turns Passed 29172 | 58 539 610 565 1389 514 454 1127 1489 698 142 966 637 954 1160 1627 2050 1954 1779 641 623 304 1425 810 821 282 964 1238 536 357 1651 808 Spaces Moved 14252 | 20 372 342 251 733 302 135 430 742 398 85 485 346 524 644 999 935 884 863 341 240 143 556 467 456 163 537 517 175 145 675 347 Core . | . . . . . . . . . . . . . . . . . . . . . . . . . . . . . . . . Treads 12726 | . . . 137 733 185 . 4 742 398 85 485 346 524 644 999 935 884 863 341 240 143 556 467 456 163 537 517 175 145 675 347 Legs 37 | 20 17 . . . . . . . . . . . . . . . . . . . . . . . . . . . . . . Wheels 1489 | . 355 342 114 . 117 135 426 . . . . . . . . . . . . . . . . . . . . . . . . Hover . | . . . . . . . . . . . . . . . . . . . . . . . . . . . . . . . . Flight . | . . . . . . . . . . . . . . . . . . . . . . . . . . . . . . . . Fastest Speed 95 | 120 95 140 140 160 155 230 160 160 160 160 160 160 160 160 160 160 160 160 160 160 160 160 160 160 160 160 160 157 157 150 155 Average Speed 161 | 120 115 152 153 160 166 230 176 160 160 160 160 160 160 160 160 160 169 162 161 160 160 160 160 160 160 160 161 196 157 165 159 Slowest Speed 250 | 120 155 155 160 160 230 230 230 160 160 160 160 160 160 160 160 240 243 163 163 160 160 160 160 160 160 160 166 250 157 232 232 Overloaded Moves . | . . . . . . . . . . . . . . . . . . . . . . . . . . . . . . . . Propulsion Burnouts . | . . . . . . . . . . . . . . . . . . . . . . . . . . . . . . . . Robots Hopped . | . . . . . . . . . . . . . . . . . . . . . . . . . . . . . . . . Cave-ins Triggered . | . . . . . . . . . . . . . . . . . . . . . . . . . . . . . . . . Teleports 1 | . . . . . . . . . . . . . . . . . . . . . . . . . . . . 1 . . . Exploration Rate (%) 51 | 3 63 64 38 99 68 25 39 22 54 69 62 16 68 85 84 68 25 85 63 80 16 19 90 71 62 66 19 19 77 22 9 Regions Visited 31 Branch Regions 21 Pre-discovered Areas 11 | . . 2 . 1 1 . . . 2 1 . . . . 1 . . . . . . . . . 3 . . . . . . Known Exits Taken 8 | . . . 1 . . . . 1 . . . 1 . . . 1 1 . . . . 1 . . . . 1 . . 1 . Unknown Exits Taken 23 | 1 1 1 . 1 1 1 1 . 1 1 1 . 1 1 1 . . 1 1 1 1 . 1 1 1 1 . 1 1 . . Scrap Searched 18 | . . 1 . 2 . . . . 2 . 2 . . 5 1 . . . . . . . 3 . . 2 . . . . . Spaces Dug 188 | . . 9 7 14 . . 2 4 . . 3 8 7 8 1 6 18 10 . . 2 19 . 5 . . 16 12 1 26 10 Terrain Destroyed 1107 | . . 34 46 43 . 72 96 20 1 . 9 23 10 45 1 94 72 75 9 12 169 127 . 10 . 5 54 19 1 41 19 Melee 15 | . . . . . . . 2 4 . . 2 5 . . . . 2 . . . . . . . . . . . . . . Projectile 398 | . . . 1 . . . 6 16 1 . 1 3 10 17 1 13 70 26 6 12 6 62 . 10 . 5 54 19 1 41 17 AOE 692 | . . 34 45 43 . 72 88 . . . 6 15 . 28 . 81 . 49 3 . 163 65 . . . . . . . . . Terrain Rammed . | . . . . . . . . . . . . . . . . . . . . . . . . . . . . . . . . Walls Destroyed . | . . . . . . . . . . . . . . . . . . . . . . . . . . . . . . . . Machines Disabled . | . . . . . . . . . . . . . . . . . . . . . . . . . . . . . . . . Actions | -11 -10 -10 -9 -9 -9 -8 -8 -7 -7 -7 -6 -6 -6 -6 -6 -5 -5 -5 -5 -5 -5 -4 -4 -4 -4 -3 -3 -3 -3 -2 -1 --------- Run | Scr Mat Min Mat Min Exi Min Mat Fac Low Dat Pro Fac Low Low Zio Pro Fac Ext Cet Arc Hub Fac Upp Upp Zhi Pro Res Arm Lab Res Acc Total 18833 | 33 432 410 393 940 316 268 704 954 454 90 665 405 615 735 1031 1349 1185 1141 400 418 201 924 525 522 184 632 801 299 242 1044 521 Wait 2522 | . 11 35 108 164 . 121 125 111 52 . 160 20 55 47 5 165 133 122 11 91 23 241 41 46 2 84 157 50 52 173 117 Move 14220 | 19 371 341 250 732 301 134 429 741 397 84 484 345 523 643 998 934 883 862 340 239 142 555 466 455 162 536 516 174 144 674 346 Hop . | . . . . . . . . . . . . . . . . . . . . . . . . . . . . . . . . Pick Up 190 | 2 12 6 3 13 3 2 28 9 1 . 2 5 3 5 7 11 13 3 7 3 4 6 1 . 4 . 14 5 1 13 4 Fast Attach 116 | 1 2 2 1 . 3 . 4 4 . 2 . 3 2 . 3 9 13 8 5 10 6 2 3 . 4 . 5 3 9 12 . Attach 88 | . 2 1 4 2 1 1 12 3 . . . 3 1 1 3 4 4 . 1 6 1 7 . . 2 . 7 6 1 12 3 Detach 42 | . . . 1 . 1 . 4 1 . . . 1 . . 4 2 2 1 3 5 . . 2 . . . 4 . 3 8 . Swap 329 | 1 1 8 5 2 2 1 13 24 2 2 13 11 11 9 1 45 37 15 3 3 9 21 8 9 4 6 21 6 2 25 9 Drop 230 | . 6 5 . 12 5 . 25 13 . 2 2 3 5 4 7 18 24 15 13 8 7 4 3 . 6 . 14 2 6 19 2 Fire 895 | 10 27 12 21 15 . 9 62 26 2 . 2 8 15 26 3 71 74 48 17 53 9 83 1 12 . 3 62 52 24 108 40 Melee 35 | . . . . . . . 2 22 . . 2 5 . . . 2 2 . . . . . . . . . . . . . . Ram . | . . . . . . . . . . . . . . . . . . . . . . . . . . . . . . . . Kick . | . . . . . . . . . . . . . . . . . . . . . . . . . . . . . . . . Crush 13 | . . . . . . . . . . . . 1 . . . . . 5 . . . 5 . . . . 1 1 . . . Escape Stasis . | . . . . . . . . . . . . . . . . . . . . . . . . . . . . . . . . Rewire 153 | . . . . . . . . . . . . . . . . 88 . 62 . . . . . . . 3 . . . . . Trap . | . . . . . . . . . . . . . . . . . . . . . . . . . . . . . . . . Miscellaneous . | . . . . . . . . . . . . . . . . . . . . . . . . . . . . . . . . Route ------- -11/Scrapyard -10/Materials (discovered 3 exits: *Mat x2 / *Min) -10/Mines (discovered 2 exits: *Mat x2) -9/Materials (discovered 3 exits: *Mat / *Min / *Sto) -9/Mines (discovered 3 exits: *Mat x2 / *Exi) -9/Exiles -8/Mines -8/Materials -7/Factory (discovered 2 exits: *Fac / *Low) -7/Lower Caves -7/Data Miner -6/Proximity Caves -6/Factory (discovered 3 exits: Fac / *Low x2) -6/Lower Caves -6/Lower Caves (discovered 2 exits: *Fac / [*Zio]) -6/Zion -5/Proximity Caves -5/Factory (discovered 5 exits: Fac / Upp x2 / *Ext x2) -5/Extension (discovered 2 exits: *Fac / *Cet) -5/Cetus (discovered 2 exits: *Fac / *Arc) -5/Archives (discovered 3 exits: *Fac / *Hub x2) -5/Hub_04(d) -4/Factory (discovered 2 exits: *Upp x2) -4/Upper Caves -4/Upper Caves (discovered 2 exits: *Res / *Zhi) -4/Zhirov -3/Proximity Caves -3/Research (discovered 3 exits: *Arm / *Qua x2) -3/Armory -3/Lab -2/Research (discovered 5 exits: *Acc x3 / Tes x2) -1/Access To Epsilon Eridani History --------- Turn | Location | Event 1 | -11/Scrapyard | Discovered new exit (range 3) 59 | -11/Scrapyard | Entered Materials 207 | -10/Materials | Discovered new exit (range 9) 217 | -10/Materials | Discovered new exit (range 10) 275 | -10/Materials | Central database locked down 310 | -10/Materials | Build established: Mutant 366 | -10/Materials | Discovered new exit (range 5) 598 | -10/Materials | Entered Mines 609 | -10/Mines | Met a Derelict who couldn't figure out how to use a Trap Extractor 628 | -10/Mines | Met a Derelict bent on vengeance 686 | -10/Mines | Learned Materials emergency access door positions 892 | -10/Mines | Learned location of Zion (-6) 892 | -10/Mines | Discovered new exit (range 4) 978 | -10/Mines | Discovered new exit (range 7) 1152 | -10/Mines | Learned location of Recycling (-9) 1208 | -10/Mines | Entered Materials 1208 | -9/Materials | Evolved 2 slots: Propulsion x1, Utility x1 1569 | -9/Materials | Discovered new exit (range 13) 1691 | -9/Materials | Identified exit to Mines 1691 | -9/Materials | Identified exit to Storage 1770 | -9/Materials | Destroyed 7 combat bots 1773 | -9/Materials | Entered Mines 1894 | -9/Mines | Assembled infested the area 2142 | -9/Mines | Escorted by a lone wolf Derelict 2202 | -9/Mines | A weapon hastily lodged in a ceiling crevice suddenly fell to the ground 2596 | -9/Mines | Discovered new exit (range 9) 2670 | -9/Mines | Discovered new exit (range 5) 2916 | -9/Mines | Received a Rocket Launcher from a helpful Derelict 3116 | -9/Mines | Deemed a non-threat by the Exiles lab entrance 3117 | -9/Mines | Discovered new exit (range 5) 3162 | -9/Mines | Entered Exiles 3162 | -9/Exiles | Accompanied by 3 allies 3192 | -9/Exiles | Led the pair of lost Derelicts to a safe place 3199 | -9/Exiles | Met 8R-AWN 3228 | -9/Exiles | Met EX-HEX 3322 | -9/Exiles | Met EX-DEC 3383 | -9/Exiles | Met EX-BIN 3406 | -9/Exiles | Aligned with FarCom system 3407 | -9/Exiles | Given EX-Vault access code 3444 | -9/Exiles | Opened EX-Vault 3464 | -9/Exiles | Found Chronowheel 3497 | -9/Exiles | Warned to stay clear of 0b10 Research branches 3657 | -9/Exiles | Discovered new exit (range 10) 3676 | -9/Exiles | Left Exiles lab with Chronowheel 3676 | -9/Exiles | Entered Mines 3890 | -8/Mines | Build established: Hauler-Mutant 4093 | -8/Mines | Discovered new exit (range 9) 4130 | -8/Mines | Entered Materials 4130 | -8/Materials | Evolved 2 slots: Propulsion x2 5226 | -8/Materials | Discovered new exit (range 8) 5257 | -8/Materials | Entered Factory 5257 | -7/Factory | Evolved 2 slots: Utility x2 5544 | -7/Factory | Build established: Scavenger-Assassin 5901 | -7/Factory | Discovered new exit (range 5) 6635 | -7/Factory | Discovered new exit (range 16) 6671 | -7/Factory | Allied Derelicts emerged from ambush trap array 6739 | -7/Factory | Identified exit to Lower Caves 6746 | -7/Factory | Entered Lower Caves 6746 | -7/Lower Caves | Accompanied by 3 allies 7004 | -7/Lower Caves | A Commander dispatched an escort 7023 | -7/Lower Caves | Learned Extension emergency access door positions 7023 | -7/Lower Caves | Learned Factory security intel 7023 | -7/Lower Caves | Learned Factory garrison access intel 7035 | -7/Lower Caves | Build established: Skirmisher 7286 | -7/Lower Caves | Attracted the attention of an 0b10 checkpoint 7360 | -7/Lower Caves | Encountered a Warlord checkpoint 7437 | -7/Lower Caves | A Derelict revealed a hidden shortcut to meet someone special 7444 | -7/Lower Caves | Entered Data Miner 7444 | -7/Data Miner | Accompanied by 5 allies 7444 | -7/Data Miner | Discovered new exit (range 6) 7445 | -7/Data Miner | Commander's escort returned to base 7445 | -7/Data Miner | Commander's escort returned to base 7476 | -7/Data Miner | Met Data Miner 7505 | -7/Data Miner | Learned location of Section 7 (-3) 7505 | -7/Data Miner | Acquired the access code to Warlord's prototype stash 7533 | -7/Data Miner | Received God Mode back door access code from Data Miner 7586 | -7/Data Miner | Entered Proximity Caves 7586 | -6/Proximity Caves | Accompanied by 3 allies 7666 | -6/Proximity Caves | Learned 8 Factory zone layouts 8088 | -6/Proximity Caves | Learned Factory terminal intel 8170 | -6/Proximity Caves | Escorted by Enhanced Grunt 8438 | -6/Proximity Caves | Acquired the password to a Derelict Tinkerer's latest research 8533 | -6/Proximity Caves | Discovered new exit (range 9) 8552 | -6/Proximity Caves | Entered Factory 8552 | -6/Factory | Accompanied by 4 allies 8552 | -6/Factory | Evolved 2 slots: Propulsion x1, Utility x1 8553 | -6/Factory | Identified exit to Factory 8555 | -6/Factory | Loaded intel: 25 terminal locations 8556 | -6/Factory | Loaded intel: 3 garrison access locations 8617 | -6/Factory | Build established: Mutant 8902 | -6/Factory | First assault squad dispatched 9019 | -6/Factory | Identified exit to Lower Caves 9189 | -6/Factory | Entered Lower Caves 9189 | -6/Lower Caves | Accompanied by 2 allies 9466 | -6/Lower Caves | Build established: Skirmisher 9550 | -6/Lower Caves | Learned Factory trap positions 10039 | -6/Lower Caves | Build established: Mutant 10071 | -6/Lower Caves | Found Alien Artifact 10071 | -6/Lower Caves | Identified Core Expander 10071 | -6/Lower Caves | Installed Core Expander, added new Weapon slot 10124 | -6/Lower Caves | Discovered new exit (range 9) 10143 | -6/Lower Caves | Entered another Lower Caves area 10297 | -6/Lower Caves | Discovered exit to Factory (range 14) 10638 | -6/Lower Caves | Spotted B-75 Beast 10939 | -6/Lower Caves | Learned Factory security intel 11273 | -6/Lower Caves | Discovered new exit (range 15) 11303 | -6/Lower Caves | Entered Zion 11385 | -6/Zion | Discovered new exit (range 16) 11551 | -6/Zion | Given A8's code to call for help 11767 | -6/Zion | Gained Derelict followers 11997 | -6/Zion | Acquired unknown access codes intercepted by a Zionite 12053 | -6/Zion | Rebuked by Imprinter 12293 | -6/Zion | Learned Factory security intel 12729 | -6/Zion | Found Prototype Processor 12729 | -6/Zion | Identified Exp. Armor Integrity Analyzer 12732 | -6/Zion | Found Prototype Processor 12732 | -6/Zion | Identified Exp. Signal Interpreter 12736 | -6/Zion | Found Prototype Processor 12736 | -6/Zion | Identified Exp. Core Analyzer 12739 | -6/Zion | Found Exp. Core Analyzer 12748 | -6/Zion | Found Prototype Processor 12930 | -6/Zion | Entered Proximity Caves 12930 | -5/Proximity Caves | Accompanied by 2 allies 13441 | -5/Proximity Caves | Learned Factory terminal intel 13588 | -5/Proximity Caves | Build established: Skirmisher 14021 | -5/Proximity Caves | Snuck into a huge 0b10 base via the rear entrance 14547 | -5/Proximity Caves | Discovered exit to Factory (range 5) 14980 | -5/Proximity Caves | Entered Factory 14980 | -5/Factory | Accompanied by 4 allies 14980 | -5/Factory | Evolved 2 slots: Power x1, Utility x1 14981 | -5/Factory | Loaded intel: 73 trap records 14983 | -5/Factory | Loaded intel: 27 terminal locations 15494 | -5/Factory | P-70 Sage assimilated allied Soldier 6d 15561 | -5/Factory | Garrison activated, responded to threat 15876 | -5/Factory | Identified exit to Upper Caves 15876 | -5/Factory | Identified exit to Extension 15917 | -5/Factory | Incoming investigation squad redirected 16003 | -5/Factory | Fabricated Hvy. Treads? 16018 | -5/Factory | Identified Spectral Analyzer 16470 | -5/Factory | Discovered new exit (range 11) 16934 | -5/Factory | Entered Extension 17482 | -5/Extension | Rescued a captive Derelict 17495 | -5/Extension | Rescued a captive Derelict 17495 | -5/Extension | Rescued a captive Derelict 17523 | -5/Extension | Rescued a captive Derelict 17523 | -5/Extension | Rescued a captive Derelict 17554 | -5/Extension | Rescued a captive Derelict 17555 | -5/Extension | Rescued a captive Derelict 17698 | -5/Extension | Build established: Hacker-Skirmisher 17734 | -5/Extension | Rescued a captive Derelict 18049 | -5/Extension | Spotted B-75 Beast 18062 | -5/Extension | Allies destroyed B-75 Beast 18078 | -5/Extension | Spotted B-75 Beast 18084 | -5/Extension | Disrupted transfer network 18085 | -5/Extension | Destroyed B-75 Beast 18174 | -5/Extension | P-70 Sage assimilated allied QU-0MZ(g) 18269 | -5/Extension | Rescued A7 18337 | -5/Extension | Build established: Hacker-Tank 18664 | -5/Extension | Discovered new exit (range 10) 18665 | -5/Extension | Discovered new exit (range 6) 18713 | -5/Extension | Entered Cetus 18713 | -5/Cetus | Accompanied by 13 allies (A7) 18718 | -5/Cetus | Acquired a Cetus Manufacturing Module code from A7 18737 | -5/Cetus | Spotted Cetus Guard 18737 | -5/Cetus | Spotted Cetus Guard 18739 | -5/Cetus | Spotted Cetus Guard 18739 | -5/Cetus | Spotted Cetus Guard 18741 | -5/Cetus | Allies destroyed Cetus Guard 18752 | -5/Cetus | Allies destroyed Cetus Guard 18757 | -5/Cetus | Allies destroyed Cetus Guard 18759 | -5/Cetus | Allies destroyed Cetus Guard 18966 | -5/Cetus | Started Cetus Manufacturing Module 18991 | -5/Cetus | Manufactured an Enhanced Grunt 18994 | -5/Cetus | Discovered new exit (range 16) 19016 | -5/Cetus | Manufactured an Enhanced Grunt 19036 | -5/Cetus | Spotted Cetus Guard 19036 | -5/Cetus | Spotted Cetus Guard 19041 | -5/Cetus | Manufactured an Enhanced Grunt 19044 | -5/Cetus | Cetus Manufacturing Module disabled 19044 | -5/Cetus | Spotted Cetus Guard 19044 | -5/Cetus | Allies destroyed Cetus Guard 19047 | -5/Cetus | Spotted Cetus Guard 19055 | -5/Cetus | Allies destroyed Cetus Guard 19056 | -5/Cetus | Destroyed Cetus Guard 19060 | -5/Cetus | Allies destroyed Cetus Guard 19062 | -5/Cetus | Discovered new exit (range 16) 19072 | -5/Cetus | Met Revision 17 19272 | -5/Cetus | Destroyed Revision 17 19354 | -5/Cetus | Entered Archives 19354 | -5/Archives | Accompanied by 5 allies (A7) 19417 | -5/Archives | Discovered new exit (range 15) 19482 | -5/Archives | Discovered new exit (range 16) 19485 | -5/Archives | System corruption reached 10% 19657 | -5/Archives | Discovered new exit (range 16) 19932 | -5/Archives | Unable to access archive contents 19977 | -5/Archives | Entered Hub_04(d) 19977 | -5/Hub_04(d) | Accompanied by 4 allies 19999 | -5/Hub_04(d) | Build established: Scavenger-Mutant 20093 | -5/Hub_04(d) | Discovered new exit (range 15) 20235 | -5/Hub_04(d) | Network Hub disabled 20281 | -5/Hub_04(d) | Entered Factory 20281 | -4/Factory | Accompanied by 2 allies 20281 | -4/Factory | Evolved 2 slots: Utility x2 20325 | -4/Factory | Identified exit to DSF 20531 | -4/Factory | First assault squad dispatched 20554 | -4/Factory | Incoming assault squad redirected 20618 | -4/Factory | Identified exit to Upper Caves 21046 | -4/Factory | Incoming assault squad redirected 21706 | -4/Factory | Entered Upper Caves 22074 | -4/Upper Caves | Build established: Hacker-Skirmisher 22149 | -4/Upper Caves | Learned Research emergency access door positions 22216 | -4/Upper Caves | Attracted the attention of an 0b10 checkpoint 22425 | -4/Upper Caves | Discovered new exit (range 6) 22516 | -4/Upper Caves | Entered another Upper Caves area 22555 | -4/Upper Caves | Discovered new exit (range 27) 23305 | -4/Upper Caves | Discovered new exit (range 10) 23337 | -4/Upper Caves | Entered Zhirov 23337 | -4/Zhirov | Discovered new exit (range 3) 23366 | -4/Zhirov | Met Zhirov 23395 | -4/Zhirov | Learned location of Quarantine (-3) 23395 | -4/Zhirov | Learned location of Testing (-2) 23395 | -4/Zhirov | Learned location of Command (-1) 23424 | -4/Zhirov | Zhirov requested help retrieving the SGEMP Prototype 23433 | -4/Zhirov | Build established: Hacker-Mutant 23455 | -4/Zhirov | Found Alien Artifact 23455 | -4/Zhirov | Identified Integrated Reactor 23455 | -4/Zhirov | Installed Integrated Reactor, increased core energy generation (+10) 23536 | -4/Zhirov | Found Alien Artifact 23619 | -4/Zhirov | Entered Proximity Caves 24071 | -3/Proximity Caves | Build established: Scavenger-Skirmisher 24564 | -3/Proximity Caves | Discovered new exit (range 10) 24583 | -3/Proximity Caves | Entered Research 24583 | -3/Research | Evolved 2 slots: Utility x2 24742 | -3/Research | Identified Transdimensional Reconstructor 24789 | -3/Research | Identified exit to Armory 24789 | -3/Research | Identified exit to Quarantine 24857 | -3/Research | Found Prototype Launcher 24860 | -3/Research | Found Prototype Launcher 24862 | -3/Research | Identified Adv. Micro-nuke Launcher (x2) 24911 | -3/Research | Build established: Hacker-Mutant 25379 | -3/Research | Repaired Centrium Medium Armor Plating 25431 | -3/Research | Garrison activated, responded to threat 25618 | -3/Research | System corruption reached 10% 25821 | -3/Research | Entered Armory 26111 | -3/Armory | Repaired Centrium Medium Armor Plating? 26324 | -3/Armory | Warped through subspace to slip node 26324 | -3/Armory | Discovered new exit (range 1) 26346 | -3/Armory | Spotted B-86 Titan 26357 | -3/Armory | Entered Lab 26357 | -3/Lab | Discovered new exit (range 9) 26379 | -3/Lab | Unable to decrypt terminal 26379 | -3/Lab | Opened the door to a hidden lab 26380 | -3/Lab | Gained access to the hidden lab's interior 26402 | -3/Lab | Unable to decrypt terminal 26402 | -3/Lab | Disabled Active System Cloaker 26419 | -3/Lab | Detected by scanners 26475 | -3/Lab | Confronted by A5 26516 | -3/Lab | Destroyed A5 26546 | -3/Lab | Found Prototype Protection 26546 | -3/Lab | Identified Med. Regenerative Plating 26564 | -3/Lab | Found Alien Artifact 26564 | -3/Lab | Identified Integrated Mediator 26564 | -3/Lab | Installed Integrated Mediator, increased core attachment efficiency. 26571 | -3/Lab | Found Alien Artifact 26571 | -3/Lab | Identified Core Regenerator 26571 | -3/Lab | Used Core Regenerator, restored core integrity (+325) 26581 | -3/Lab | Found Prototype Hackware 26581 | -3/Lab | Identified Exp. System Shield 26584 | -3/Lab | Found Prototype Hackware 26584 | -3/Lab | Identified Exp. Hacking Suite 26618 | -3/Lab | Found Prototype Device 26618 | -3/Lab | Identified AEGIS Remote Shield 26629 | -3/Lab | Found Prototype Energy Gun 26629 | -3/Lab | Identified Tachyon Dispersion Ray 26635 | -3/Lab | Found Prototype Energy Cannon 26635 | -3/Lab | Identified Warp Cannon 26646 | -3/Lab | Found Prototype Hackware 26646 | -3/Lab | Identified Quantum Router 26714 | -3/Lab | Entered Research 26714 | -2/Research | Evolved 2 slots: Propulsion x1, Utility x1 26769 | -2/Research | Repaired Centrium Medium Armor Plating? 26814 | -2/Research | Repaired Adv. KE Penetrator 26891 | -2/Research | Repaired Arm. Heavy Treads 27222 | -2/Research | Build established: Wizard-Mutant 27398 | -2/Research | Intercept squad dispatched 27424 | -2/Research | Spotted Tracker 27425 | -2/Research | Spotted Tracker 27445 | -2/Research | Destroyed Tracker 27455 | -2/Research | Destroyed Tracker 27462 | -2/Research | Found Exp. Targeting Computer 27486 | -2/Research | Spotted Combat Programmer 27503 | -2/Research | Destroyed Combat Programmer 27525 | -2/Research | Spotted Combat Programmer 27539 | -2/Research | System corruption reached 10% 27543 | -2/Research | Destroyed Combat Programmer 27575 | -2/Research | Found Prototype Device 27575 | -2/Research | Identified Exp. Phase Shifter 28003 | -2/Research | Identified exit to Testing 28003 | -2/Research | Identified exit to Access 28119 | -2/Research | Intercept squad dispatched 28138 | -2/Research | Spotted Tracker 28138 | -2/Research | Spotted Tracker 28138 | -2/Research | Spotted Tracker 28148 | -2/Research | Spotted Combat Programmer 28160 | -2/Research | Destroyed Tracker 28165 | -2/Research | Spotted Combat Programmer 28170 | -2/Research | Destroyed Tracker 28180 | -2/Research | Spotted Combat Programmer 28181 | -2/Research | Combat Programmer assimilated allied Director 9a 28181 | -2/Research | Destroyed Tracker 28191 | -2/Research | Destroyed Combat Programmer 28206 | -2/Research | Destroyed Combat Programmer 28215 | -2/Research | Lost 3 parts (3u) 28216 | -2/Research | Destroyed Combat Programmer 28237 | -2/Research | Destroyed 7 combat bots 28264 | -2/Research | Found Exp. Targeting Computer 28347 | -2/Research | System corruption reached 30% 28365 | -2/Research | Entered Access 28365 | -1/Access | Evolved 2 slots: Propulsion x1, Weapon x1 29032 | -1/Access | Intercept squad dispatched 29039 | -1/Access | Discovered new exit (range 16) 29049 | -1/Access | Spotted Tracker 29054 | -1/Access | Destroyed Tracker 29055 | -1/Access | Spotted Tracker 29061 | -1/Access | Destroyed Tracker 29086 | -1/Access | Spotted Combat Programmer 29093 | -1/Access | Destroyed Combat Programmer 29116 | -1/Access | Spotted Combat Programmer 29128 | -1/Access | Destroyed Combat Programmer 29171 | -1/Access | System corruption reached 10% 29173 | *** | Escaped! Last Messages --------------- 29122_ Extracted 28 energy. 29123_ Extracted 23 energy. 29125_ Slug penetrates Wall. 29125_ Slug penetrates Combat Programmer. 29126_ Extracted 6 energy. 29127_ Penetrated by EMDS Slug. 29128_ Combat Programmer fries systems beyond repair. 29128_ Combat Programmer destroyed. 29128_ Slug penetrates Wall. 29129_ Wall collapses. 29132_ Acquired Energy Well. 29138_ Ended siege mode. 29160_ Connecting with Terminal... >>Open(Door) Sealed Barrier opened. 29160_ Terminal disabled. 29161_ Adv. KE Penetrator destroyed. 29165_ The Access Shell folds into the floor. 29165_ Railgun destroyed. 29167_ System corrupted: Component data lost. Map ----- +----------------------------------------------------+ | ## """## ###?#?## # "" # | | ## T"## ####??## + # | | ## """## #####??# # # | | ## "" ## ##?##### ################# | | ## # ####### ######## " | | ## # % # """ | | ## ! # % !|# """ | | ## # ##########"###%!# " | | ###############+#####?# !!![#=*+ | | ####?###### ### #! # | | #?######?## ### "" #=|# | | ##########?####?# " ### """#%=# | | ? ######?#?###### """ ### T"#!!########## | | ?############?# """ + + """#*%#######??? | | ?##?#####?#?### " ### "" # ## ##?? | | ? ########?###### ### # ## #??? | | #?############# ### # ## #??? | | ??? ###?#?##############?########## ## #### | | ?+? ?#?##??##?##?###?#??##??#??##??# ## + | | ? # ? ?####?##????#?###?#??#?######??# ## #### | | ???? ??####???####?########### ####### ## #??? | | ?????? ### ? ? """" ## #??? | | ?????????? ?BB ?""" u## #??? | | ????????#???? BB?"""" #########? | | ???? ???????? ? "?"" ## #? | | ???????? ??? ? ??"" "@ u ## #? | | ??????????? ? ??""" "" p ## #? | | ???????????????? ???" p ## #? | | ?????????? ???BB??"?" p #????????? | | ??????????????BB ???" "" """ #????????? | | ???????????????? ???" """T""" #????????? | | ????????????????????########## ####### #????????? | | ?????????????????????????????###?????? #????????? | | ?????????????????????????????????????? #????????? | | ??????????????????????????????????????p #????????? | | ?????????????????????????????????????? #????????? | | ?????????????????????????????????????? #????????? | | ?????????????????????????????????????????????????? | | ?????????????????????????????????????????????????? | | ?????????????????????????????????????????????????? | | ?????????????????????????????????????????????????? | | ?????????????????????????????????????????????????? | | ?????????????????????????????????????????????????? | | ?????????????????????????????????????????????????? | | ?????????????????????????????????????????????????? | | ?????????????????????????????????????????????????? | | ?????????????????????????????????????????????????? | | ?????????????????????????????????????????????????? | | ?????????????????????????????????????????????????? | | ?????????????????????????????????????????????????? | +----------------------------------------------------+ Best States ------------- Heat Dissipation 83 Coolant Potential 120 Energy Generation 55 Energy Capacity 590 Matter Stores 300 Matter Capacity 300 Sight Range 16 Robot Scan Range 15 Terrain Scan Range 16 Terrain Scan Density 210 Jamming Range 16 Armor Coverage 1350 Resistance: KI 25 Resistance: TH 15 Resistance: EM 25 Utility Shielding 33 Weapon Shielding 33 Weapon Cycling 20 Evasion (%) 55 Targeting Accuracy 12 Armor Integrity Analysis 50 Recoil Reduction 8 Energy Filtering 50 Particle Charging 20 Kinecelleration 40 Offensive Hacking 42 Defensive Hacking 41 Trap Extractor Capacity 6 Item Schematics ----------------- Huge Storage Unit | -10/Materials | Hacked Combat Drone Bay | -7/Data Miner | Free Lgt. Regenerative Plating | -7/Data Miner | Free Cld. Cesium-ion Thruster | -7/Data Miner | Free Exp. Targeting Computer | -7/Data Miner | Free Cld. Plasma Cannon | -7/Data Miner | Free Arm. Medium Treads | -7/Data Miner | Free Point Defense System | -7/Data Miner | Free Wave Gun | -7/Data Miner | Free Imp. Thermal Shield | -7/Data Miner | Free Nuclear Pulse Thruster | -6/Zion | Archive Hvy. Treads | -6/Zion | Archive Hpw. Shock Rifle | -6/Zion | Archive Adv. Plasma Cannon | -6/Zion | Archive Dispersion Rifle | -6/Zion | Archive Spk. Medium Treads | -6/Zion | Archive Imp. Focal Shield | -6/Zion | Archive Imp. Particle Charger | -6/Zion | Archive Variable Charge Gun | -6/Zion | Archive Proton Cannon | -6/Zion | Archive Imp. Shock Absorption System | -6/Zion | Archive Mak. Trap Scanner | -6/Zion | Archive Phase Cannon | -6/Zion | Archive Centrium Wheel | -6/Zion | Archive Assault Drone Bay | -4/Zhirov | Free Exp. Heat Sink | -4/Zhirov | Free Exp. Optical Array | -4/Zhirov | Free Imp. Arc Thrower | -4/Zhirov | Free Centrium Heavy Treads | -3/Research | Scanalyzed Robot Schematics ------------------ X-62 Marksman | -7/Data Miner | Free Y-54 Guardian | -7/Data Miner | Free L-41 Fighter | -7/Data Miner | Free B-48 Gladiator | -7/Data Miner | Free Y-64 Sentinel | -7/Data Miner | Free M-22 Extractor | -6/Zion | Archive K-01 Serf | -6/Zion | Archive X-77 Beamer | -6/Zion | Archive Fabricated ------------ Hvy. Treads | x2 | -5/Factory Alien Tech Used ----------------- Core Expander Integrated Reactor Transdimensional Reconstructor Integrated Mediator Core Regenerator Achievements -------------- None Challenges ------------ None Game ------ Seed HardlightDefenseGreatsword Manual? 0 Play Time 08:39:26 Cumulative 1277.4 hours Start 2022.04.06 @ 12:09:18 End 2022.04.17 @ 11:34:32 Sessions 59 Manual Loads 0 Difficulty Rogue Special Mode None Game No. 353 Rogue 353 Adventurer 0 Explorer 0 Win Type 0 Total 44 Types 27/6/7/3/0/0/0/1/0 Lore% 81 Gallery% 83 Achievement% 73 Wizard Run 0 Options --------- ASCII 0 Keyboard 1 Movement Numpad Keybinds 0 Fullscreen 1 Font 24/Crisp Map View 76x50 Tactical HUD 1 Map Filters NONE Filters NONE Steam 1 RUN: bf12f522-17a3-47aa-9685-43ab8674915a